[Event "V Sunway Sitges Open 2018"]
[Site "Sitges"]
[Date "2018.12.21"]
[Round "8"]
[White "Kadric, Denis"]
[Black "Sadhwani, Raunak"]
[Result "1-0"]
[ECO "B23"]
[WhiteElo "2554"]
[BlackElo "2434"]
[Annotator "ChessBase"]
[PlyCount "71"]
[EventDate "2018.12.14"]
[EventType "swiss"]
[EventCountry "ESP"]
[SourceTitle "playchess.com"]
[Source "ChessBase"]
[SourceQuality "1"]
[TimeControl "40/5400+30:1800+30"]

1. e4 {[%emt 0:00:00]} c5 {[%emt 0:00:00]} 2. Nc3 {[%emt 0:00:15]} d6 {[%emt 0:00:00]} 3. Nge2 {[%emt 0:01:31]} Nf6 {[%emt 0:00:03]} 4. g3 {[%emt 0:00:31]} Nc6 {[%emt 0:02:58]} 5. Bg2 {[%emt 0:00:02]} g6 {[%emt 0:00:05]} 6. O-O {[%emt 0:00:04]} Bg7 {[%emt 0:00:03]} 7. d3 {[%emt 0:00:02]} O-O {[%emt 0:00:11]} 8. h3 {[%emt 0:00:14]} Rb8 {[%emt 0:02:37]} 9. f4 {[%emt 0:00:05]} Bd7 {[%emt 0:00:49]} 10. g4 {[%emt 0:01:14]} b5 {[%emt 0:01:22]} 11. Ng3 {[%emt 0:00:03]} b4 {[%emt 0:03:42]} 12. Nce2 {[%emt 0:00:03]} Ne8 {[%emt 0:05:48]} 13. g5 {[%emt 0:00:50]} Qb6 {[%emt 0:10:14]} 14. Kh1 {[%emt 0:05:02]} c4 {[%emt 0:06:50]} 15. f5 a5 {[%emt 0:05:43]} 16. Rb1 {[%emt 0:08:10]} b3 {[%emt 0:13:32]} 17. axb3 {[%emt 0:01:01]} cxb3 {[%emt 0:08:01]} 18. c3 {[%emt 0:00:59]} a4 {[%emt 0:02:45]} 19. Nf4 {[%emt 0:02:23]} Nc7 {[%emt 0:03:28]} 20. f6 {[%emt 0:07:43]} exf6 {[%emt 0:02:09]} 21. gxf6 {[%emt 0:00:03]} Bh8 {[%emt 0:01:09]} 22. Nd5 {[%emt 0:00:30]} Nxd5 {[%emt 0:02:38]} 23. exd5 {[%emt 0:00:03]} Ne5 {[%emt 0:00:07]} 24. Qd2 {[%emt 0:09:38]} Rfe8 {[%emt 0:03:46]} 25. d4 {[%emt 0:01:34]} Nc4 {[%emt 0:05:04]} 26. Qh6 {[%emt 0:00:04]} a3 {[%emt 0:12:04]} 27. Bg5 {[%emt 0:00:05]} a2 {[%emt 0:02:07]} 28. Ra1 {[%emt 0:00:28]} Bg4 {[%emt 0:04:06]} 29. Rf2 {[%emt 0:08:55]} Nxb2 {[%emt 0:01:47]} 30. Rxb2 {[%emt 0:00:39]} Qa5 {[%emt 0:00:11]} 31. Bd2 {[%emt 0:08:21]} Qa3 {[%emt 0:00:10]} 32. Bc1 {[%emt 0:00:03]} Re1+ {[%emt 0:00:52]} 33. Kh2 {[%emt 0:00:02]} Qxb2 {[%emt 0:01:24]} 34. Bxb2 {[%emt 0:00:04]} Rxa1 {[%emt 0:00:04]} 35. Ne4 {[%emt 0:00:40]} g5 {[%emt 0:01:08]} 36. hxg4 {[%emt 0:00:26]} 1-0

[Event "V Sunway Sitges Open 2018"]
[Site "Sitges"]
[Date "2018.12.21"]
[Round "8"]
[White "Kelires, Andreas"]
[Black "Medarde Santiago, Luis Marcos"]
[Result "1/2-1/2"]
[ECO "A45"]
[WhiteElo "2535"]
[BlackElo "2386"]
[Annotator "ChessBase"]
[PlyCount "104"]
[EventDate "2018.12.14"]
[EventType "swiss"]
[EventCountry "ESP"]
[SourceTitle "playchess.com"]
[Source "ChessBase"]
[SourceQuality "1"]
[TimeControl "40/5400+30:1800+30"]

1. d4 {[%emt 0:00:00]} Nf6 {[%emt 0:00:01]} 2. Nc3 {[%emt 0:00:00]} d5 {[%emt 0:00:38]} 3. Bf4 {[%emt 0:00:00]} c5 {[%emt 0:00:08]} 4. e3 {[%emt 0:00:03]} cxd4 {[%emt 0:00:14]} 5. exd4 {[%emt 0:01:31]} a6 {[%emt 0:00:08]} 6. Nf3 {[%emt 0:00:07]} Nc6 {[%emt 0:00:25]} 7. Ne5 {[%emt 0:01:58]} Bd7 {[%emt 0:00:06]} 8. a3 {[%emt 0:09:26]} e6 {[%emt 0:05:11]} 9. Be2 {[%emt 0:07:10]} Qb6 {[%emt 0:01:04]} 10. Nxd7 {[%emt 0:04:31]} Nxd7 {[%emt 0:00:59]} 11. Be3 {[%emt 0:00:24]} g6 {[%emt 0:16:35]} 12. Na4 {[%emt 0:20:53]} Qc7 {[%emt 0:00:51]} 13. b4 {[%emt 0:10:33]} Bg7 {[%emt 0:01:35]} 14. O-O {[%emt 0:03:03]} O-O {[%emt 0:01:23]} 15. c3 {[%emt 0:00:35]} Nb6 {[%emt 0:16:04]} 16. Nc5 {[%emt 0:03:26]} Ne7 {[%emt 0:01:06]} 17. a4 {[%emt 0:08:30]} a5 {[%emt 0:06:04]} 18. bxa5 {[%emt 0:01:04]} Rxa5 {[%emt 0:00:14]} 19. Qb3 {[%emt 0:02:08]} Ra7 {[%emt 0:03:23]} 20. Bg5 {[%emt 0:05:20]} Nc6 {[%emt 0:02:45]} 21. Rab1 {[%emt 0:09:07]} Nd7 {[%emt 0:01:49]} 22. Nxd7 {[%emt 0:00:15]} Qxd7 {[%emt 0:00:07]} 23. Bb5 {[%emt 0:00:12]} Qc7 {[%emt 0:01:23]} 24. Rfc1 {[%emt 0:02:15]} Rc8 {[%emt 0:01:24]} 25. Qd1 {[%emt 0:00:50]} Na5 {[%emt 0:03:56]} 26. Qf3 {[%emt 0:00:54]} Nc4 {[%emt 0:01:25]} 27. Bf4 {[%emt 0:01:53]} Qd8 {[%emt 0:03:04]} 28. Qg3 {[%emt 0:03:34]} Na3 {[%emt 0:02:26]} 29. Rb3 {[%emt 0:00:12]} Nxb5 {[%emt 0:01:26]} 30. Rxb5 {[%emt 0:00:13]} Rxa4 {[%emt 0:04:32]} 31. Rxb7 {[%emt 0:03:07]} Rac4 {[%emt 0:00:27]} 32. Rbb1 {[%emt 0:01:11]} Qa5 {[%emt 0:01:23]} 33. h4 {[%emt 0:01:07]} h5 {[%emt 0:08:01]} 34. Ra1 {[%emt 0:00:13]} Qb5 {[%emt 0:01:38]} 35. Rcb1 {[%emt 0:00:25]} Qc6 {[%emt 0:02:28]} 36. Bd2 {[%emt 0:00:03]} Ra4 {[%emt 0:00:44]} 37. Qf4 {[%emt 0:00:54]} Rxa1 {[%emt 0:00:44]} 38. Rxa1 {[%emt 0:00:03]} Qb7 {[%emt 0:00:34]} 39. g3 {[%emt 0:00:53]} Ra8 {[%emt 0:00:31]} 40. Rxa8+ {[%emt 0:00:00]} Qxa8 {[%emt 0:00:00]} 41. Qc7 {[%emt 0:01:15]} Qa1+ {[%emt 0:03:28]} 42. Kg2 {[%emt 0:02:07]} Qb1 {[%emt 0:00:14]} 43. Qd8+ {[%emt 0:02:25]} Kh7 {[%emt 0:00:14]} 44. Be3 {[%emt 0:02:09]} Qe4+ {[%emt 0:00:37]} 45. Kg1 {[%emt 0:00:09]} Qb1+ {[%emt 0:00:23]} 46. Kh2 {[%emt 0:00:05]} Qf5 {[%emt 0:00:05]} 47. Qe8 {[%emt 0:00:19]} Bh6 {[%emt 0:04:21]} 48. Bxh6 {[%emt 0:00:38]} Qxf2+ {[%emt 0:00:05]} 49. Kh1 {[%emt 0:01:03]} Qf1+ {[%emt 0:00:12]} 50. Kh2 {[%emt 0:00:05]} Qf2+ {[%emt 0:00:04]} 51. Kh1 {[%emt 0:00:03]} Qf1+ {[%emt 0:00:03]} 52. Kh2 {[%emt 0:00:08]} Qf2+ {[%emt 0:00:04]} 1/2-1/2

[Event "V Sunway Sitges Open 2018"]
[Site "Sitges"]
[Date "2018.12.21"]
[Round "8"]
[White "Alonso Rosell, Alvar"]
[Black "Harutyunian, Tigran K."]
[Result "1/2-1/2"]
[ECO "D38"]
[WhiteElo "2524"]
[BlackElo "2528"]
[Annotator "ChessBase"]
[PlyCount "33"]
[EventDate "2018.12.14"]
[EventType "swiss"]
[EventCountry "ESP"]
[SourceTitle "playchess.com"]
[Source "ChessBase"]
[SourceQuality "1"]
[TimeControl "40/5400+30:1800+30"]

1. d4 Nf6 {[%emt 0:00:18]} 2. Nf3 {[%emt 0:00:00]} d5 {[%emt 0:00:29]} 3. c4 {[%emt 0:00:00]} e6 {[%emt 0:00:10]} 4. Nc3 {[%emt 0:00:00]} Bb4 {[%emt 0:00:25]} 5. Qa4+ {[%emt 0:00:00]} Nc6 {[%emt 0:00:16]} 6. e3 {[%emt 0:00:00]} O-O {[%emt 0:00:54]} 7. Bd2 dxc4 {[%emt 0:05:12]} 8. Bxc4 {[%emt 0:00:00]} Bd6 9. Qc2 {[%emt 0:00:14]} a6 {[%emt 0:00:40]} 10. Ne4 {[%emt 0:25:39]} Bd7 11. Nxf6+ {[%emt 0:00:04]} Qxf6 {[%emt 0:11:02]} 12. Bd3 {[%emt 0:03:02]} h6 {[%emt 0:18:14]} 13. O-O {[%emt 0:02:23]} e5 {[%emt 0:09:33]} 14. Bc3 {[%emt 0:00:41]} exd4 {[%emt 0:00:53]} 15. Nxd4 {[%emt 0:13:00]} Be5 {[%emt 0:04:18]} 16. Be4 {[%emt 0:04:36]} Rfe8 17. Bxc6 1/2-1/2

[Event "V Sunway Sitges Open 2018"]
[Site "Sitges"]
[Date "2018.12.21"]
[Round "8"]
[White "Stella, Andrea"]
[Black "Seyb, Alexander"]
[Result "1-0"]
[ECO "D71"]
[WhiteElo "2503"]
[BlackElo "2419"]
[Annotator "ChessBase"]
[PlyCount "65"]
[EventDate "2018.12.14"]
[EventType "swiss"]
[EventCountry "ESP"]
[SourceTitle "playchess.com"]
[Source "ChessBase"]
[SourceQuality "1"]
[TimeControl "40/5400+30:1800+30"]

1. d4 {[%emt 0:03:17]} Nf6 {[%emt 0:00:00]} 2. c4 {[%emt 0:00:09]} g6 {[%emt 0:00:00]} 3. g3 {[%emt 0:00:06]} c5 {[%emt 0:00:00]} 4. Nf3 {[%emt 0:00:47]} Bg7 {[%emt 0:00:13]} 5. Bg2 {[%emt 0:02:36]} O-O {[%emt 0:00:08]} 6. Nc3 {[%emt 0:00:23]} cxd4 {[%emt 0:00:16]} 7. Nxd4 {[%emt 0:00:52]} Qc7 {[%emt 0:00:06]} 8. b3 {[%emt 0:05:42]} d5 {[%emt 0:00:07]} 9. Ndb5 {[%emt 0:09:35]} Qa5 {[%emt 0:00:07]} 10. Bd2 {[%emt 0:00:16]} dxc4 {[%emt 0:00:07]} 11. bxc4 {[%emt 0:00:07]} Qd8 {[%emt 0:00:12]} 12. O-O {[%emt 0:01:30]} a6 {[%emt 0:00:06]} 13. Na3 {[%emt 0:00:58]} Nc6 {[%emt 0:00:08]} 14. Rb1 {[%emt 0:04:47]} Qd6 {[%emt 0:00:11]} 15. Bc1 {[%emt 0:03:18]} Qxd1 {[%emt 0:13:11]} 16. Rxd1 {[%emt 0:00:40]} Rd8 {[%emt 0:00:10]} 17. Nd5 {[%emt 0:12:43]} Nxd5 {[%emt 0:04:06]} 18. cxd5 {[%emt 0:00:35]} Nd4 {[%emt 0:00:50]} 19. Kf1 {[%emt 0:01:47]} b5 {[%emt 0:13:09]} 20. Be3 {[%emt 0:09:24]} Nf5 {[%emt 0:00:06]} 21. Bb6 {[%emt 0:00:19]} Rd7 {[%emt 0:01:20]} 22. d6 {[%emt 0:02:20]} Bb7 {[%emt 0:00:28]} 23. Bxb7 {[%emt 0:00:18]} Rxb7 {[%emt 0:00:02]} 24. d7 {[%emt 0:00:09]} Rxb6 {[%emt 0:01:07]} 25. d8=Q+ {[%emt 0:01:23]} Rxd8 {[%emt 0:00:03]} 26. Rxd8+ {[%emt 0:00:08]} Bf8 {[%emt 0:00:04]} 27. Nc4 {[%emt 0:06:47]} Re6 {[%emt 0:05:20]} 28. g4 {[%emt 0:12:34]} Nh4 {[%emt 0:02:48]} 29. a4 {[%emt 0:06:21]} Re4 {[%emt 0:06:03]} 30. axb5 {[%emt 0:00:13]} axb5 {[%emt 0:00:01]} 31. Nb6 {[%emt 0:01:26]} Kg7 {[%emt 0:00:07]} 32. f3 {[%emt 0:00:47]} Re6 {[%emt 0:01:07]} 33. Rxb5 {[%emt 0:00:25]} 1-0

[Event "V Sunway Sitges Open 2018"]
[Site "Sitges"]
[Date "2018.12.21"]
[Round "8"]
[White "Soumya, Swaminathan"]
[Black "Sarkar, Justin"]
[Result "1/2-1/2"]
[ECO "B35"]
[WhiteElo "2428"]
[BlackElo "2332"]
[Annotator "ChessBase"]
[PlyCount "83"]
[EventDate "2018.12.14"]
[EventType "swiss"]
[EventCountry "ESP"]
[SourceTitle "playchess.com"]
[Source "ChessBase"]
[SourceQuality "1"]
[TimeControl "40/5400+30:1800+30"]

1. e4 c5 {[%emt 0:00:08]} 2. Nf3 {[%emt 0:00:16]} Nc6 {[%emt 0:00:16]} 3. Nc3 {[%emt 0:00:18]} g6 {[%emt 0:00:41]} 4. d4 {[%emt 0:00:06]} cxd4 {[%emt 0:00:05]} 5. Nxd4 {[%emt 0:00:02]} Bg7 {[%emt 0:00:14]} 6. Be3 {[%emt 0:00:09]} Nf6 7. Bc4 {[%emt 0:00:41]} O-O {[%emt 0:02:01]} 8. Bb3 {[%emt 0:00:14]} d6 {[%emt 0:00:37]} 9. f3 {[%emt 0:02:45]} Na5 {[%emt 0:02:27]} 10. Qd2 {[%emt 0:01:43]} Nxb3 {[%emt 0:01:31]} 11. axb3 {[%emt 0:05:21]} Bd7 {[%emt 0:18:58]} 12. g4 Qb8 13. h4 {[%emt 0:21:50]} h5 {[%emt 0:02:42]} 14. gxh5 {[%emt 0:21:17]} Nxh5 {[%emt 0:00:20]} 15. Ra5 {[%emt 0:00:03]} e5 {[%emt 0:18:59]} 16. Ndb5 {[%emt 0:01:05]} a6 {[%emt 0:06:46]} 17. Nxd6 {[%emt 0:07:15]} b5 18. Bg5 {[%emt 0:14:54]} f6 {[%emt 0:07:41]} 19. Qd5+ {[%emt 0:01:04]} Kh7 {[%emt 0:00:25]} 20. Be3 Qc7 {[%emt 0:03:53]} 21. Ra1 {[%emt 0:05:38]} Bc6 {[%emt 0:07:05]} 22. Qe6 {[%emt 0:01:11]} Rad8 {[%emt 0:10:21]} 23. Rd1 {[%emt 0:02:32]} Rd7 {[%emt 0:04:40]} 24. Rg1 {[%emt 0:00:50]} Bh6 {[%emt 0:04:29]} 25. Bxh6 {[%emt 0:04:40]} Kxh6 {[%emt 0:00:04]} 26. Ne2 Rg7 {[%emt 0:01:12]} 27. c4 {[%emt 0:03:28]} Qb6 {[%emt 0:01:39]} 28. c5 Qxc5 {[%emt 0:00:20]} 29. Rc1 {[%emt 0:05:18]} Qe3 {[%emt 0:04:09]} 30. Rc3 {[%emt 0:01:14]} Nf4 {[%emt 0:00:23]} 31. Rxg6+ Rxg6 {[%emt 0:00:43]} 32. Nf5+ {[%emt 0:00:47]} Kh5 {[%emt 0:00:26]} 33. Nxe3 {[%emt 0:01:04]} Nxe6 {[%emt 0:00:09]} 34. Rxc6 {[%emt 0:00:02]} Nd4 {[%emt 0:02:16]} 35. Nxd4 {[%emt 0:00:29]} exd4 {[%emt 0:00:02]} 36. Nf5 {[%emt 0:00:08]} Rg2 {[%emt 0:01:02]} 37. Rc7 {[%emt 0:00:29]} Rxb2 {[%emt 0:01:10]} 38. Rh7+ {[%emt 0:00:18]} Kg6 {[%emt 0:00:01]} 39. Rg7+ {[%emt 0:00:09]} Kh5 {[%emt 0:00:01]} 40. Rh7+ {[%emt 0:00:00]} Kg6 {[%emt 0:00:00]} 41. Rg7+ {[%emt 0:00:51]} Kh5 {[%emt 0:00:04]} 42. Rh7+ {[%emt 0:00:30]} 1/2-1/2

[Event "V Sunway Sitges Open 2018"]
[Site "Sitges"]
[Date "2018.12.21"]
[Round "8"]
[White "Raja, Rithvik R"]
[Black "Keymer, Vincent"]
[Result "1/2-1/2"]
[ECO "D35"]
[WhiteElo "2415"]
[BlackElo "2508"]
[Annotator "ChessBase"]
[PlyCount "49"]
[EventDate "2018.12.14"]
[EventType "swiss"]
[EventCountry "ESP"]
[SourceTitle "playchess.com"]
[Source "ChessBase"]
[SourceQuality "1"]
[TimeControl "40/5400+30:1800+30"]

1. d4 Nf6 2. c4 e6 3. Nc3 d5 4. cxd5 Nxd5 5. e4 Nxc3 6. bxc3 c5 7. Nf3 cxd4 8. cxd4 Bb4+ 9. Bd2 Bxd2+ 10. Qxd2 O-O 11. Bc4 Nd7 12. O-O b6 13. Rad1 Bb7 14. Rfe1 Rc8 15. Bb3 h6 16. h3 Re8 17. Qf4 Qc7 18. Qxc7 Rxc7 19. d5 exd5 20. exd5 Rcc8 21. Rxe8+ Rxe8 22. Ba4 Rd8 23. Bc6 Nc5 24. Nd4 Ba6 25. a4 1/2-1/2

[Event "V Sunway Sitges Open 2018"]
[Site "Sitges"]
[Date "2018.12.21"]
[Round "8"]
[White "Dhulipalla Bala Chandra Prasa"]
[Black "Romanishin, Oleg M"]
[Result "1/2-1/2"]
[ECO "A40"]
[WhiteElo "2328"]
[BlackElo "2451"]
[Annotator "ChessBase"]
[PlyCount "32"]
[EventDate "2018.12.14"]
[EventType "swiss"]
[EventCountry "ESP"]
[SourceTitle "playchess.com"]
[Source "ChessBase"]
[SourceQuality "1"]
[TimeControl "40/5400+30:1800+30"]

1. d4 {[%emt 0:00:00]} Nf6 {[%emt 0:00:00]} 2. c4 {[%emt 0:00:00]} e6 {[%emt 0:00:00]} 3. g3 {[%emt 0:00:00]} Bb4+ {[%emt 0:00:00]} 4. Bd2 {[%emt 0:00:17]} c5 {[%emt 0:00:33]} 5. Bxb4 {[%emt 0:01:03]} cxb4 {[%emt 0:00:06]} 6. Bg2 {[%emt 0:00:21]} Qc7 {[%emt 0:00:06]} 7. Nd2 {[%emt 0:06:54]} O-O {[%emt 0:00:40]} 8. Ngf3 {[%emt 0:02:41]} b6 {[%emt 0:01:45]} 9. O-O {[%emt 0:18:36]} Bb7 {[%emt 0:00:12]} 10. Rc1 {[%emt 0:03:50]} d6 {[%emt 0:00:34]} 11. Qb3 {[%emt 0:10:02]} a5 {[%emt 0:00:48]} 12. Rfd1 {[%emt 0:01:03]} Nbd7 {[%emt 0:00:36]} 13. a3 {[%emt 0:01:49]} bxa3 {[%emt 0:01:24]} 14. Qxa3 {[%emt 0:00:02]} Ne4 {[%emt 0:12:08]} 15. Nxe4 {[%emt 0:07:33]} Bxe4 {[%emt 0:00:09]} 16. Nd2 {[%emt 0:00:26]} Bb7 1/2-1/2

[Event "V Sunway Sitges Open 2018"]
[Site "Sitges"]
[Date "2018.12.21"]
[Round "8"]
[White "Tastambekov, Timur"]
[Black "Gjestemoen-VonHirsch, Andre"]
[Result "1-0"]
[ECO "A57"]
[WhiteElo "2146"]
[BlackElo "1993"]
[Annotator "NA"]
[PlyCount "77"]
[EventDate "2018.12.14"]
[EventType "swiss"]
[EventCountry "ESP"]
[SourceTitle "playchess.com"]
[Source "ChessBase"]
[SourceQuality "1"]
[TimeControl "40/5400+30:1800+30"]

1. d4 {[%emt 0:09:01]} Nf6 {[%emt 0:00:00]} 2. c4 {[%emt 0:00:04]} c5 {[%emt 0:00:05]} 3. d5 {[%emt 0:00:03]} b5 {[%emt 0:00:11]} 4. cxb5 {[%emt 0:00:03]} a6 {[%emt 0:00:11]} 5. f3 {[%emt 0:00:07]} g6 {[%emt 0:01:49]} 6. e4 {[%emt 0:00:12]} Bg7 {[%emt 0:03:31]} 7. e5 {[%emt 0:03:09]} Ng8 {[%emt 0:00:52]} 8. f4 {[%emt 0:00:05]} d6 {[%emt 0:02:04]} 9. Nf3 {[%emt 0:01:42]} Nh6 {[%emt 0:04:11]} 10. Bc4 {[%emt 0:05:12]} Nd7 {[%emt 0:07:54]} 11. Nc3 {[%emt 0:08:46]} Nb6 {[%emt 0:05:17]} 12. Be2 {[%emt 0:04:58]} O-O {[%emt 0:07:54]} 13. O-O {[%emt 0:03:15]} axb5 {[%emt 0:10:33]} 14. Bxb5 {[%emt 0:00:14]} Bb7 {[%emt 0:01:37]} 15. e6 {[%emt 0:35:12]} fxe6 {[%emt 0:17:37]} 16. dxe6 {[%emt 0:08:46]} Nf5 {[%emt 0:01:09]} 17. Re1 {[%emt 0:02:50]} Nd4 {[%emt 0:02:05]} 18. Nxd4 {[%emt 0:01:43]} Bxd4+ {[%emt 0:01:28]} 19. Kh1 {[%emt 0:00:26]} Ra5 {[%emt 0:01:53]} 20. Bd3 {[%emt 0:01:22]} Qa8 {[%emt 0:07:59]} 21. Qg4 {[%emt 0:01:13]} c4 {[%emt 0:02:08]} 22. Bc2 {[%emt 0:03:18]} Nd5 {[%emt 0:02:17]} 23. Nxd5 {[%emt 0:03:19]} Bxd5 {[%emt 0:05:15]} 24. f5 {[%emt 0:00:26]} Bg7 {[%emt 0:03:53]} 25. Bg5 {[%emt 0:02:51]} gxf5 {[%emt 0:02:18]} 26. Qg3 {[%emt 0:00:35]} Kh8 {[%emt 0:00:59]} 27. Bxe7 {[%emt 0:01:26]} Rg8 {[%emt 0:00:40]} 28. Bg5 {[%emt 0:01:13]} Bxb2 {[%emt 0:04:18]} 29. Rab1 {[%emt 0:00:19]} f4 {[%emt 0:00:35]} 30. Qh3 {[%emt 0:02:29]} Bxg2+ {[%emt 0:00:29]} 31. Qxg2 {[%emt 0:00:17]} f3 {[%emt 0:02:39]} 32. Qf2 {[%emt 0:00:16]} Raxg5 {[%emt 0:00:49]} 33. Rxb2 {[%emt 0:00:32]} Rg2 {[%emt 0:00:59]} 34. Qd4+ {[%emt 0:00:05]} R8g7 {[%emt 0:00:03]} 35. Be4 {[%emt 0:01:19]} Qf8 {[%emt 0:01:13]} 36. Rxg2 {[%emt 0:00:17]} fxg2+ {[%emt 0:00:08]} 37. Bxg2 {[%emt 0:00:07]} Qe7 {[%emt 0:00:44]} 38. Rb1 {[%emt 0:00:36]} Qa7 39. Bf1 1-0

[Event "V Sunway Sitges Open 2018"]
[Site "Sitges"]
[Date "2018.12.21"]
[Round "8"]
[White "Ruiz Gonzalez, Jorge"]
[Black "Arias Castanedo, Jacinto"]
[Result "1-0"]
[ECO "B12"]
[WhiteElo "2083"]
[BlackElo "1811"]
[Annotator "NA"]
[PlyCount "65"]
[EventDate "2018.12.14"]
[EventType "swiss"]
[EventCountry "ESP"]
[SourceTitle "playchess.com"]
[Source "ChessBase"]
[SourceQuality "1"]
[TimeControl "40/5400+30:1800+30"]

1. e4 {[%emt 0:00:00]} c6 {[%emt 0:06:37]} 2. d4 {[%emt 0:00:00]} d5 {[%emt 0:00:07]} 3. e5 {[%emt 0:00:00]} Bf5 {[%emt 0:00:15]} 4. g4 {[%emt 0:00:39]} Bd7 {[%emt 0:00:09]} 5. Nc3 {[%emt 0:00:15]} e6 {[%emt 0:00:11]} 6. Be3 {[%emt 0:00:28]} a6 {[%emt 0:00:20]} 7. a3 {[%emt 0:03:04]} Qc7 {[%emt 0:00:21]} 8. Qd2 {[%emt 0:04:50]} c5 {[%emt 0:01:51]} 9. dxc5 {[%emt 0:08:03]} Qxe5 {[%emt 0:01:43]} 10. O-O-O {[%emt 0:00:28]} Qc7 {[%emt 0:00:27]} 11. Re1 {[%emt 0:01:19]} Ne7 {[%emt 0:01:04]} 12. Bg2 {[%emt 0:02:41]} Bc6 {[%emt 0:01:46]} 13. Bf4 {[%emt 0:14:55]} Qa5 {[%emt 0:10:47]} 14. Qd4 {[%emt 0:07:38]} Nd7 {[%emt 0:06:15]} 15. Bd6 {[%emt 0:00:22]} O-O-O {[%emt 0:03:17]} 16. a4 {[%emt 0:03:18]} Re8 {[%emt 0:09:11]} 17. b4 {[%emt 0:00:58]} Qd8 {[%emt 0:00:09]} 18. b5 {[%emt 0:03:08]} Nb8 {[%emt 0:00:06]} 19. Qf4 {[%emt 0:13:02]} Ng6 {[%emt 0:05:40]} 20. Qb4 {[%emt 0:03:53]} a5 21. Qb3 {[%emt 0:06:36]} Bxd6 {[%emt 0:13:25]} 22. cxd6 {[%emt 0:00:05]} Bd7 {[%emt 0:02:27]} 23. Nh3 {[%emt 0:05:30]} h5 {[%emt 0:02:48]} 24. g5 {[%emt 0:01:44]} Nh4 {[%emt 0:04:12]} 25. Bxd5 {[%emt 0:05:26]} exd5 {[%emt 0:06:33]} 26. Nxd5 {[%emt 0:00:26]} Nc6 {[%emt 0:04:53]} 27. bxc6 {[%emt 0:00:35]} Bxc6 {[%emt 0:00:11]} 28. Ne7+ {[%emt 0:06:05]} Kd7 {[%emt 0:03:06]} 29. Nxc6 {[%emt 0:00:19]} Qa8 {[%emt 0:02:06]} 30. Ne5+ {[%emt 0:00:43]} Rxe5 {[%emt 0:02:34]} 31. Rxe5 {[%emt 0:00:09]} Ng6 {[%emt 0:00:18]} 32. Qxf7+ {[%emt 0:00:27]} Kxd6 {[%emt 0:00:33]} 33. Qe6+ {[%emt 0:00:09] Kd5} 1-0

[Event "V Sunway Sitges Open 2018"]
[Site "Sitges"]
[Date "2018.12.21"]
[Round "8"]
[White "Wlogalski, Olivier"]
[Black "Walter Travella, German"]
[Result "0-1"]
[ECO "A01"]
[WhiteElo "1872"]
[BlackElo "1917"]
[Annotator "NA"]
[PlyCount "136"]
[EventDate "2018.12.14"]
[EventType "swiss"]
[EventCountry "ESP"]
[SourceTitle "playchess.com"]
[Source "ChessBase"]
[SourceQuality "1"]
[TimeControl "40/5400+30:1800+30"]

1. b3 {[%emt 0:00:00]} e5 {[%emt 0:04:25]} 2. Bb2 {[%emt 0:00:00]} Nc6 {[%emt 0:00:26]} 3. e3 {[%emt 0:00:00]} Nf6 {[%emt 0:03:28]} 4. Bb5 {[%emt 0:00:00]} Bd6 {[%emt 0:00:52]} 5. Na3 {[%emt 0:00:21]} a6 {[%emt 0:00:26] A01: Nimzowitsch-Larsen Opening} (5... e4 6. Nc4 Be7 7. Bxc6 bxc6 8. Ne2 a5 9. O-O a4 10. d3 exd3 11. cxd3 axb3 12. axb3 Rxa1 13. Qxa1 {1-0 (27) Karjakin,S (2782)-Giri,A (2782) Leuven 2018}) 6. Bxc6 {[%emt 0:03:35]} dxc6 {[%emt 0:00:15]} 7. Nc4 {[%emt 0:00:43]} Qe7 {[%emt 0:01:43]} 8. Ne2 {[%emt 0:06:12]} b5 {[%emt 0:01:24]} 9. Nxd6+ {[%emt 0:00:14]} cxd6 {[%emt 0:00:33]} 10. d3 {[%emt 0:00:55]} O-O {[%emt 0:05:04]} 11. O-O {[%emt 0:00:23]} Re8 {[%emt 0:02:21]} 12. Qd2 {[%emt 0:00:28]} d5 $146 {[%emt 0:04:22]} ({Predecessor:} 12... a5 13. e4 {½-½ (23) Punzon Moraleda,J (2385)-Morales Pecino,B (2358) ICCF email 2006}) 13. a4 {[%emt 0:02:11]} b4 {[%emt 0:01:21]} 14. Ng3 {[%emt 0:01:34]} h5 {[%emt 0:00:43]} 15. e4 {[%emt 0:03:06]} h4 {[%emt 0:10:42]} 16. Nf5 {[%emt 0:03:47]} Bxf5 {[%emt 0:00:17]} 17. exf5 {[%emt 0:00:04]} Nh7 {[%emt 0:02:28]} 18. Rae1 {[%emt 0:03:02]} f6 {[%emt 0:05:46]} 19. Qe2 {[%emt 0:02:47]} e4 {[%emt 0:05:19]} 20. d4 {[%emt 0:08:36]} h3 {[%emt 0:05:47]} 21. Bc1 {[%emt 0:01:02]} hxg2 {[%emt 0:00:31]} 22. Kxg2 {[%emt 0:00:10]} Qa7 {[%emt 0:00:45]} 23. Rd1 {[%emt 0:02:29]} Qf7 {[%emt 0:00:16]} 24. Qg4 {[%emt 0:01:48]} Kf8 {[%emt 0:01:07]} 25. Qh4 {[%emt 0:04:40]} g6 {[%emt 0:01:22]} 26. Bh6+ {[%emt 0:08:40]} Ke7 {[%emt 0:00:33]} 27. fxg6 {[%emt 0:01:16]} Qxg6+ {[%emt 0:00:57]} 28. Kh1 {[%emt 0:00:07]} Ng5 {[%emt 0:01:02]} 29. Bxg5 {[%emt 0:00:52]} fxg5 {[%emt 0:00:52]} 30. Qg3 {[%emt 0:00:26]} Kd7 {[%emt 0:02:21]} 31. Rg1 {[%emt 0:05:54]} Rf8 {[%emt 0:00:26]} 32. Rdf1 {[%emt 0:01:34]} Rf5 {[%emt 0:00:57]} 33. Qg4 {[%emt 0:01:29]} Kc7 {[%emt 0:00:39]} 34. c3 {[%emt 0:02:00]} bxc3 {[%emt 0:02:30]} 35. Qg3+ {[%emt 0:00:06]} Kd7 {[%emt 0:00:45]} 36. Qxc3 {[%emt 0:00:12]} Rh8 {[%emt 0:01:46]} 37. Qb4 {[%emt 0:01:29]} g4 {[%emt 0:03:31]} 38. Qb7+ {[%emt 0:04:38]} Kd6 {[%emt 0:04:05]} 39. Rg3 {[%emt 0:00:42]} Qh6 {[%emt 0:01:44]} 40. h3 {[%emt 0:00:00]} Rh5 {[%emt 0:00:00]} 41. Qb4+ {[%emt 0:15:44]} Ke6 {[%emt 0:02:23]} 42. Kg2 {[%emt 0:00:34]} Rxh3 {[%emt 0:00:43]} 43. Rg1 {[%emt 0:00:57]} Rh1 {[%emt 0:05:35]} 44. Kf1 {[%emt 0:00:28]} Qc1+ {[%emt 0:06:16]} 45. Qe1 {[%emt 0:00:07]} Rxg1+ {[%emt 0:01:21]} 46. Rxg1 {[%emt 0:00:12]} Qxe1+ {[%emt 0:00:16]} 47. Kxe1 {[%emt 0:00:12]} Kf5 {[%emt 0:01:29]} 48. Ke2 {[%emt 0:00:42]} Rh2 {[%emt 0:01:05]} 49. Rg3 {[%emt 0:02:37]} Rh3 {[%emt 0:00:23]} 50. b4 {[%emt 0:02:10]} Kf4 {[%emt 0:01:18]} 51. Rg1 {[%emt 0:01:40]} Rc3 {[%emt 0:00:47]} 52. Rb1 {[%emt 0:00:31]} e3 {[%emt 0:04:01]} 53. Rb2 {[%emt 0:07:37]} Ke4 {[%emt 0:00:49]} 54. b5 {[%emt 0:00:28]} axb5 {[%emt 0:00:42]} 55. axb5 {[%emt 0:04:46]} cxb5 {[%emt 0:00:16]} 56. fxe3 {[%emt 0:00:20]} Rxe3+ {[%emt 0:00:20]} 57. Kf2 {[%emt 0:00:05]} g3+ {[%emt 0:00:55]} 58. Kg2 {[%emt 0:00:05]} Kxd4 {[%emt 0:02:15]} 59. Rxb5 {[%emt 0:00:46]} Ke4 {[%emt 0:00:20]} 60. Rb8 {[%emt 0:00:17]} d4 {[%emt 0:00:19]} 61. Re8+ {[%emt 0:00:13]} Kd3 {[%emt 0:00:18]} 62. Ra8 {[%emt 0:01:12]} Kc2 {[%emt 0:00:34]} 63. Rc8+ {[%emt 0:09:25]} Kd1 {[%emt 0:01:22]} 64. Kf1 {[%emt 0:01:42]} d3 {[%emt 0:00:59]} 65. Rc7 {[%emt 0:00:08]} Re2 {[%emt 0:00:46]} 66. Rd7 {[%emt 0:00:30]} d2 {[%emt 0:00:43]} 67. Rd8 {[%emt 0:01:37]} Re1+ {[%emt 0:00:57]} 68. Kg2 {[%emt 0:00:40]} Kc2 {[%emt 0:00:33]} 0-1